Workbook

Sheet Sheet1
A1: Ir | B1: 1 | C1: kA | D1: (rated current)
A2: IL | B2: 0.5 | C2: kA | D2: (load demand current)
B4: Spectrum | C4: based on Ir | D4: based on IL
A5: h | B5: % | C5: Ih in kA (Ir) | D5: Ih in kA (IL)
A6: 1 | B6: 100 | C6: =$B$2 -> 0.5 | D6: =$B$2 -> 0.5
A7: 5 | B7: 2 | C7: =$B7/100*$B$1 -> 0.02 | D7: =$B7/100*$B$2 -> 0.01
A8: 7 | B8: 1.5 | C8: =B8/100*$B$1 -> 0.015 | D8: =$B8/100*$B$2 -> 0.0075
A9: 11 | B9: 1 | C9: =B9/100*$B$1 -> 0.01 | D9: 0.005
A10: 13 | B10: 0.7 | C10: =B10/100*$B$1 -> 0.007 | D10: 0.0035
A11: 17 | B11: 0.3 | C11: =B11/100*$B$1 -> 0.003 | D11: 0.0015
B13: Irms | C13: =SQRT(SUMSQ(C6:C11)) -> 0.5007823879 | D13: =SQRT(SUMSQ(D6:D11)) -> 0.5001957117
B15: THD (Ir) in % | C15: =SQRT(C$13^2-C$6^2)/$B$1*100 -> 2.798213716 | D15: =SQRT(D$13^2-D$6^2)/$B$1*100 -> 1.399106858 | E15: based on Ir
B16: THD (IL) in % | C16: =SQRT(C$13^2-C$6^2)/$B$2*100 -> 5.596427432 | D16: =SQRT(D$13^2-D$6^2)/$B$2*100 -> 2.798213716 | E16: based on IL
B18: TDD in % | C18: =D15 -> 1.399106858
B19: TRD in % | C19: =C15 -> 2.798213716
